{"text_format":"3","workbook":"xlsx","n_sheets":16,"sheets":["Tenement Details","Holders","Holder Changes","Dealings","Rent","Expenditure","Conditions","Blocks","Bonds","Relationships","Shires","Rates","MRF","Compliance","Wardens Court","Actions"],"not_rendered":{"images":1,"defined_names":34,"comments":16},"read":"whole","date_system":"1900"}

{"sheet":"Tenement Details","index":0,"n_rows":6,"n_cols":22,"rows_kept":6}
[]
[null,"Due Diligence Report - Tenement Details"]
[]
[null,"Name","Type","Status","Holders","Project","Expiry","Commence","Next F5 Due","Next Rent Due","Next Rates Due","Current Area","Approx Area Ha","Application Area","Grant Area","Mark Out","Received","Responsible Geo","Reporting Group","Managing Company","Tenement Manager","Warnings"]
[]
[null,{"$f":"\"Total : \" & SUBTOTAL(103,tblTenements[Name])","v":"Total : 0"},{"$nulls":10},{"$f":"SUBTOTAL(109,tblTenements[Approx Area Ha])","v":0}]

{"sheet":"Holders","index":1,"n_rows":6,"n_cols":5,"rows_kept":6}
[]
[null,"Holders"]
[]
[null,"Tenement","Company Name","Correspondence Address","Shares"]
[]
[null,{"$f":"\"Total : \" & SUBTOTAL(103,tblHolders[Tenement])","v":"Total : 0"}]

{"sheet":"Holder Changes","index":2,"n_rows":6,"n_cols":9,"rows_kept":6}
[]
[null,"Holder Changes"]
[]
[null,"Tenement","Type","Ref No","Status","From Holder","From Shares","To Holder","To Shares"]
[]
[null,{"$f":"\"Total : \" & SUBTOTAL(103,tblHolderChange[Tenement])","v":"Total : 0"}]

{"sheet":"Dealings","index":3,"n_rows":6,"n_cols":8,"rows_kept":6}
[]
[null,"Dealings"]
[]
[null,"Tenement","Type","Ref No","Lodged","Status","Status Date","Full Text"]
[]
[null,{"$f":"\"Total : \" & SUBTOTAL(103,tblDealings[Tenement])","v":"Total : 0"}]

{"sheet":"Rent","index":4,"n_rows":6,"n_cols":12,"rows_kept":6}
[]
[null,"Rent"]
[]
[null,"Tenement","Type","Year","Receipt Date","Receipt No","Registrar Lodged","Amount","Amount Due","Discrepancy","Rental Area","Effective Date"]
[]
[null,{"$f":"\"Total : \" & SUBTOTAL(103,tblRent[Tenement])","v":"Total : 0"},{"$nulls":5},{"$f":"SUBTOTAL(109,tblRent[Amount])","v":{"v":0,"d":"$0.00"}},{"$f":"SUBTOTAL(109,tblRent[Amount Due])","v":{"v":0,"d":"$0.00"}},{"$f":"SUBTOTAL(109,tblRent[Discrepancy])","v":{"v":0,"d":"$0.00"}}]

{"sheet":"Expenditure","index":5,"n_rows":6,"n_cols":17,"rows_kept":6}
[]
[null,"Expenditure"]
[]
[null,"Tenement","Year","Min. Exp.","Lodge Date","Exp. Total","Exemp. Amount","Exemp. Lodged Date","Exemp. No","Exemp. Status","Outcome Date","Expl. Activities","Mining Activities","Aboriginal Survey Activities","Rent & Rates","Admin.","Prospecting Exp."]
[]
[null,{"$f":"\"Total : \" & SUBTOTAL(103,tblExpenditure[Tenement])","v":"Total : 0"},null,{"$f":"SUBTOTAL(109,tblExpenditure[Min. Exp.])","v":{"v":0,"d":"$0.00"}},null,{"$f":"SUBTOTAL(109,tblExpenditure[Exp. Total])","v":{"v":0,"d":"$0.00"}},{"$f":"SUBTOTAL(109,tblExpenditure[Exemp. Amount])","v":{"v":0,"d":"$0.00"}},{"$nulls":4},{"$f":"SUBTOTAL(109,tblExpenditure[Expl. Activities])","v":{"v":0,"d":"$0.00"}},{"$f":"SUBTOTAL(109,tblExpenditure[Mining Activities])","v":{"v":0,"d":"$0.00"}},{"$f":"SUBTOTAL(109,tblExpenditure[Aboriginal Survey Activities])","v":{"v":0,"d":"$0.00"}},{"$f":"SUBTOTAL(109,tblExpenditure[Rent & Rates])","v":{"v":0,"d":"$0.00"}},{"$f":"SUBTOTAL(109,tblExpenditure[Admin.])","v":{"v":0,"d":"$0.00"}},{"$f":"SUBTOTAL(109,tblExpenditure[Prospecting Exp.])","v":{"v":0,"d":"$0.00"}}]

{"sheet":"Conditions","index":6,"n_rows":6,"n_cols":9,"rows_kept":6}
[]
[null,"Conditions & Endorsements"]
[]
[null,"Tenement","Type","No","Version","Start Date","End Date","Header","Text"]
[]
[null,{"$f":"\"Total : \" & SUBTOTAL(103,tblConditions[Tenement])","v":"Total : 0"}]

{"sheet":"Blocks","index":7,"n_rows":6,"n_cols":7,"rows_kept":6}
[]
[null,"Blocks"]
[]
[null,"Tenement","Area Type","Is Current","Million Plan","Primary","Graticules"]
[]
[null,{"$f":"\"Total : \" & SUBTOTAL(103,tblBlocks[Tenement])","v":"Total : 0"}]

{"sheet":"Bonds","index":8,"n_rows":6,"n_cols":7,"rows_kept":6}
[]
[null,"Bonds"]
[]
[null,"Tenement","Bond Date","Status","Status date","Dealing Number","Amount"]
[]
[null,{"$f":"\"Total : \" & SUBTOTAL(103,tblBonds[Tenement])","v":"Total : 0"},{"$nulls":4},{"$f":"SUBTOTAL(109,tblBonds[Amount])","v":{"v":0,"d":"$0.00"}}]

{"sheet":"Relationships","index":9,"n_rows":6,"n_cols":7,"rows_kept":6}
[]
[null,"Relationships"]
[]
[null,"Tenement","Dealing","Status","Related Tenement","Tenement Status","Type"]
[]
[null,{"$f":"\"Total : \" & SUBTOTAL(103,tblRelationships[Tenement])","v":"Total : 0"}]

{"sheet":"Shires","index":10,"n_rows":6,"n_cols":7,"rows_kept":6}
[]
[null,"Shires"]
[]
[null,"Tenement","Shire Name","Shire No","Start Date","Area","Assessment Number"]
[]
[null,{"$f":"\"Total : \" & SUBTOTAL(103,tblShires[Tenement])","v":"Total : 0"},{"$f":"SUBTOTAL(103,tblShires[Shire Name])","v":0}]

{"sheet":"Rates","index":11,"n_rows":6,"n_cols":7,"rows_kept":6}
[]
[null,"Rates"]
[]
[null,"Tenement","Year Ending","Shire","Amount","Date Paid","Assessment Number"]
[]
[null,{"$f":"\"Total : \" & SUBTOTAL(103,tblRates[Tenement])","v":"Total : 0"},null,null,{"$f":"SUBTOTAL(109,tblRates[Amount])","v":{"v":0,"d":"$0.00"}}]

{"sheet":"MRF","index":12,"n_rows":6,"n_cols":9,"rows_kept":6}
[]
[null,"MRF"]
[]
[null,"Tenement","Year","Activity","Category","Disturbance Type","Disturbance Area","Rehabilitation Area","Rate"]
[]
[null,{"$f":"\"Total : \" & SUBTOTAL(103,tblRates12[Tenement])","v":"Total : 0"}]

{"sheet":"Compliance","index":13,"n_rows":6,"n_cols":8,"rows_kept":6}
[]
[null,"Compliance"]
[]
[null,"Tenement","Name","Type","Status","Due Date","Amount","Details"]
[]
[null,{"$f":"\"Total : \" & SUBTOTAL(103,tblRates1213[Tenement])","v":"Total : 0"}]

{"sheet":"Wardens Court","index":14,"n_rows":6,"n_cols":10,"rows_kept":6}
[]
[null,"Wardens Court"]
[]
[null,"Tenement","Listing ID","Cause Date","Type","Warden","Proceeding Type","Cause List Ref No","Applicants","Respondents"]
[]
[null,{"$f":"\"Total : \" & SUBTOTAL(103,tblWardensCourt[Tenement])","v":"Total : 0"}]

{"sheet":"Actions","index":15,"n_rows":6,"n_cols":10,"rows_kept":6}
[]
[null,"Actions Coming Up"]
[]
[null,"Tenement","ActionType","Seq","Deadline Date","Start Date","Next Task","Amount","Responsible","Manager"]
[]
[null,{"$f":"\"Total : \" & SUBTOTAL(103,tblActions[Tenement])","v":"Total : 0"},{"$f":"SUBTOTAL(103,tblActions[ActionType])","v":0},{"$nulls":4},{"$f":"SUBTOTAL(109,tblActions[Amount])","v":{"v":0,"d":"$0.00"}}]